bitfinex/quotes_SOLUSD_20250803
["timestamp","ask_amount","ask_price","bid_price","bid_amount"]
[1754192681553,4.74801293,161.33,161.32,61.01483557]
[1754192683163,4.74801293,161.33,161.32,87.01483557]
[1754192688572,4.74801293,161.33,161.32,86.34483557]
[1754192688781,4.74801293,161.33,161.32,87.01483557]
[1754192698762,4.74801293,161.33,161.32,83.8993358]
[1754192700373,4.74801293,161.33,161.32,83.2293358]
[1754192700566,4.74801293,161.33,161.32,83.8993358]
[1754192701080,4.74801293,161.33,161.32,77.68742731]
[1754192701310,5.45801293,161.33,161.32,5.468013]
[1754192701467,10.99992142,161.33,161.27,5.54190849]
[1754192701667,5.54190849,161.31,161.28,43.12]
[1754192701895,6.25190849,161.3,161.28,43.12]
[1754192702073,6.25190849,161.29,161.23,5.54190849]
[1754192702404,4.74801293,161.33,161.22,44.74]
[1754192702405,4.74801293,161.33,161.24,43.14]
[1754192702600,4.74801293,161.33,161.24,69.14]
[1754192702784,0.71,161.32,161.24,69.14]
[1754192703671,5.54190849,161.29,161.24,74.68190849]
[1754192703875,0.71,161.28,161.24,74.68190849]
[1754192704068,0.71,161.28,161.25,5.54190849]
[1754192704269,0.71,161.28,161.26,43.14]
[1754192705803,0.67,161.28,161.26,51.81040417]
[1754192706099,0.67,161.27,161.26,51.81040417]
[1754192707507,0.67,161.29,161.26,51.81040417]
[1754192708501,4.74801293,161.33,161.31,26.0]
[1754192708709,4.74801293,161.33,161.32,43.28]
[1754192709162,14.0884171,161.33,161.23,0.69]
[1754192709367,8.67040417,161.31,161.27,8.67040417]
[1754192709609,0.67,161.3,161.28,43.3]
[1754192710288,0.67,161.3,161.28,51.97040417]
[1754192710687,0.67,161.29,161.28,51.97040417]
[1754192713185,0.67,161.29,161.28,43.3]
[1754192713878,9.34040417,161.29,161.22,44.74]
[1754192714079,0.67,161.28,161.24,8.67040417]
[1754192714291,0.67,161.28,161.25,43.28]
[1754192714617,0.67,161.28,161.25,51.95040417]
[1754192715114,0.67,161.27,161.25,51.95040417]
[1754192716835,0.67,161.27,161.25,43.28]
[1754192717503,0.67,161.26,161.25,43.28]
[1754192717691,0.67,161.26,161.25,51.95040417]
[1754192717893,8.67040417,161.3,161.25,51.95040417]
[1754192718094,0.67,161.27,161.25,51.95040417]
[1754192718291,0.67,161.27,161.25,43.28]
[1754192718506,0.67,161.27,161.25,51.95040417]
[1754192719494,8.67040417,161.3,161.25,51.95040417]
[1754192719697,0.67,161.26,161.25,43.28]
[1754192721617,0.67,161.26,161.25,43.34]
[1754192727048,16.78468397,161.29,161.25,43.34]
[1754192727337,0.67,161.27,161.25,43.34]
[1754192729151,0.67,161.29,161.25,52.70040417]
[1754192729356,0.67,161.29,161.26,8.67040417]
[1754192729524,17.45468397,161.29,161.26,8.67040417]
[1754192729717,0.67,161.28,161.25,43.34]
[1754192730039,0.67,161.28,161.25,52.01040417]
[1754192730541,0.67,161.28,161.26,8.67040417]
[1754192732012,0.67,161.28,161.25,52.70040417]
[1754192735052,0.67,161.28,161.25,49.57912197]
[1754192737545,0.03,161.31,161.27,5.54912197]
[1754192737770,0.03,161.31,161.25,43.34]
[1754192737771,0.03,161.31,161.3,5.54912197]
[1754192737943,0.03,161.31,161.3,48.78912197]
[1754192738157,0.03,161.31,161.3,49.48912197]
[1754192740474,0.03,161.31,161.3,43.94]
[1754192740668,0.03,161.31,161.3,49.48912197]
[1754192740863,0.03,161.31,161.3,52.60477382]
[1754192743952,0.03,161.31,161.3,51.90477382]
[1754192744781,0.03,161.31,161.3,52.60477382]
[1754192746371,0.03,161.31,161.3,51.90477382]
[1754192746873,0.03,161.31,161.3,43.24]
[1754192747354,0.72,161.31,161.3,43.24]
[1754192747967,0.72,161.31,161.25,26.76]
[1754192748170,0.72,161.31,161.27,8.66477382]
[1754192748383,4.8941354,161.31,161.28,43.22]
[1754192748570,0.69,161.3,161.28,43.22]
[1754192751160,4.21013757,161.31,161.28,51.88477382]
[1754192751368,0.72,161.31,161.28,51.88477382]
[1754192751775,0.72,161.31,161.28,52.58477382]
[1754192752875,4.90013757,161.31,161.28,52.58477382]
[1754192754988,4.21013757,161.31,161.29,9.36477382]
[1754192755199,0.03,161.31,161.29,9.36477382]
[1754192755696,0.03,161.31,161.3,43.2]
[1754192758092,0.72,161.31,161.3,43.2]
[1754192758292,0.03,161.31,161.3,43.2]
[1754192760382,0.03,161.31,161.3,43.9]
[1754192763099,0.03,161.31,161.3,43.2]
[1754192766104,0.72,161.31,161.3,43.2]
[1754192767911,0.03,161.31,161.3,43.2]
[1754192774584,0.72,161.31,161.3,43.2]
[1754192776081,0.03,161.31,161.3,43.2]
[1754192776308,0.03,161.31,161.3,43.91]
[1754192777312,0.03,161.31,161.3,43.2]
[1754192777913,0.03,161.31,161.3,43.91]
[1754192779811,0.03,161.31,161.3,43.2]
[1754192780785,0.03,161.31,161.3,43.91]
[1754192780981,0.03,161.31,161.3,49.4564357]
[1754192781309,4.21013757,161.31,161.3,49.4564357]
[1754192781540,0.03,161.31,161.3,49.4564357]
[1754192781708,4.21013757,161.31,161.3,49.4564357]
[1754192782029,0.03,161.31,161.3,49.4564357]
[1754192786504,0.03,161.31,161.3,48.7464357]
[1754192786918,0.03,161.31,161.3,49.4564357]
[1754192793248,0.03,161.31,161.3,43.2]
[1754192793420,0.03,161.31,161.3,48.7464357]
[1754192794041,0.72,161.31,161.3,43.2]
[1754192794353,0.03,161.31,161.3,43.2]
[1754192794557,0.03,161.31,161.3,49.4264357]
[1754192796595,0.03,161.31,161.3,48.7464357]
[1754192797554,0.03,161.31,161.3,43.2]
[1754192797875,0.69,161.31,161.28,0.06]
[1754192798053,16.78468397,161.29,161.28,0.06]
[1754192798257,9.72657327,161.29,161.28,0.06]
[1754192798459,10.38657327,161.29,161.28,0.06]
[1754192806617,6.2064357,161.29,161.28,0.06]
[1754192808088,27.17125724,161.29,161.28,0.06]
[1754192808473,32.26194707,161.29,161.28,0.06]
[1754192808673,27.17125724,161.29,161.28,0.06]
[1754192809187,26.51125724,161.29,161.28,0.06]
[1754192809387,9.72657327,161.29,161.28,0.06]
[1754192809705,5.5464357,161.29,161.28,0.06]
[1754192809913,10.38657327,161.3,161.28,0.06]
[1754192811906,32.2064357,161.29,161.28,0.06]
[1754192812106,36.38657327,161.29,161.28,0.06]
[1754192812519,53.17125724,161.29,161.28,0.06]
[1754192813429,47.62482154,161.29,161.28,0.06]
[1754192813632,53.17125724,161.29,161.28,0.06]
[1754192813936,47.62482154,161.29,161.28,0.06]
[1754192814230,53.17125724,161.29,161.28,0.06]
[1754192823812,47.62482154,161.29,161.28,0.06]
[1754192824013,53.17125724,161.29,161.28,0.06]
[1754192836418,47.62482154,161.29,161.28,0.06]
[1754192836626,53.17125724,161.29,161.28,0.06]
[1754192840162,101.51194678,161.29,161.28,0.06]
[1754192842239,16.78468397,161.28,161.26,0.06]
[1754192842439,26.51125724,161.27,161.26,0.06]
[1754192843565,26.51125724,161.27,161.26,0.76]
[1754192844073,20.96482154,161.27,161.26,0.76]
[1754192844253,26.51125724,161.27,161.26,0.76]
[1754192845267,26.51125724,161.27,161.26,0.06]
[1754192848259,20.96482154,161.27,161.26,0.06]
[1754192848465,20.96482154,161.27,161.26,0.76]
[1754192851488,20.96482154,161.27,161.26,0.06]
[1754192852990,21.66482154,161.27,161.26,0.06]
[1754192857293,20.96482154,161.27,161.26,0.73]
[1754192858489,20.96482154,161.27,161.26,0.06]
[1754192859485,20.96482154,161.27,161.26,0.73]
[1754192861296,20.96482154,161.27,161.26,0.06]
[1754192866806,4.18013757,161.27,161.26,0.73]
[1754192867099,4.18013757,161.27,161.26,6.2764357]
[1754192867278,4.18013757,161.3,161.26,6.2764357]
[1754192867595,10.44657327,161.29,161.26,0.06]
[1754192867921,4.90013757,161.28,161.26,0.06]
[1754192868271,4.18013757,161.27,161.26,0.06]
[1754192873515,4.90013757,161.27,161.26,0.06]
[1754192873681,0.72,161.27,161.26,0.06]
[1754192873887,4.90013757,161.27,161.26,0.06]
[1754192879715,4.18013757,161.27,161.26,0.06]
[1754192883996,4.90013757,161.27,161.26,0.06]
[1754192884411,4.18013757,161.27,161.26,0.06]
[1754192887746,4.83013757,161.27,161.26,0.06]
[1754192891444,4.84051959,161.27,161.26,0.06]
[1754192903629,10.38695529,161.27,161.26,0.06]
[1754192904230,4.84051959,161.27,161.26,0.06]
[1754192905849,4.19051959,161.27,161.26,0.06]
[1754192907954,4.84051959,161.27,161.26,0.06]
[1754192911459,4.19051959,161.27,161.26,0.06]
[1754192912471,0.68,161.28,161.26,0.06]
[1754192912669,4.19174868,161.27,161.26,0.06]
[1754192913670,4.84174868,161.27,161.26,0.06]
[1754192918091,10.38818438,161.27,161.26,0.06]
[1754192920185,4.84174868,161.27,161.26,0.06]
[1754192921254,10.38818438,161.27,161.26,0.06]
[1754192923788,4.84174868,161.27,161.26,0.06]
[1754192927284,10.38818438,161.27,161.26,0.06]
[1754192930102,4.19174868,161.27,161.26,0.76]
[1754192931676,10.41818438,161.27,161.26,0.06]
[1754192933105,4.19174868,161.27,161.26,0.76]
[1754192934511,10.41818438,161.27,161.26,0.06]
[1754192935883,4.19174868,161.27,161.26,0.76]
[1754192937600,10.41818438,161.27,161.26,0.06]
[1754192939013,4.19174868,161.27,161.26,0.76]
[1754192940586,0.03,161.28,161.26,0.76]
[1754192940803,4.22174868,161.28,161.26,0.76]
[1754192941015,0.03,161.28,161.26,0.76]
[1754192941195,4.22174868,161.28,161.26,6.3064357]
[1754192941512,0.03,161.28,161.27,0.7]
[1754192941706,4.22174868,161.28,161.27,0.7]
[1754192942008,0.03,161.28,161.27,0.7]
[1754192942213,4.22174868,161.28,161.27,0.7]
[1754192942417,0.03,161.28,161.27,0.7]
[1754192942594,4.22174868,161.28,161.27,0.7]
[1754192942795,4.40174868,161.29,161.26,0.76]
[1754192943113,0.68,161.29,161.26,0.76]
[1754192943302,16.81468397,161.3,161.26,6.3064357]
[1754192943482,16.81468397,161.3,161.27,0.7]
[1754192943686,17.49468397,161.3,161.27,0.7]
[1754192944882,22.36111967,161.3,161.26,0.06]
[1754192945081,0.66,161.29,161.26,0.77]
[1754192946835,16.81468397,161.3,161.26,6.3164357]
[1754192947004,16.81468397,161.3,161.27,0.71]
[1754192947206,17.47468397,161.3,161.27,0.71]
[1754192947416,17.47468397,161.3,161.27,6.2564357]
[1754192947417,0.69,161.3,161.27,6.2564357]
[1754192947625,0.69,161.3,161.28,0.71]
[1754192948313,0.69,161.3,161.27,11.9128717]
[1754192948519,0.69,161.3,161.27,12.6228717]
[1754192949629,0.03,161.3,161.28,5.5464357]
[1754192949927,0.03,161.3,161.28,6.2564357]
[1754192950136,0.03,161.3,161.28,11.9128717]
[1754192950336,0.03,161.3,161.29,0.71]
[1754192953319,0.03,161.3,161.29,6.2564357]
[1754192953712,0.03,161.3,161.29,8.7428387]
[1754192960631,0.03,161.3,161.29,30.9285815]
[1754192961017,0.03,161.31,161.29,30.9285815]
[1754192961245,0.03,161.31,161.3,54.4421785]
[1754192963240,0.03,161.31,161.3,32.2564357]
[1754192963444,0.03,161.31,161.3,75.3364357]
[1754192964743,0.03,161.31,161.3,80.1144487]
[1754192980852,0.03,161.31,161.3,80.1744487]
[1754192981873,0.03,161.31,161.3,79.4644487]
[1754192982657,0.03,161.31,161.3,80.1744487]
[1754192984889,0.69,161.31,161.3,36.3844487]
[1754192985056,0.69,161.31,161.3,79.4444487]
[1754192985881,0.69,161.31,161.3,10.3844487]
[1754192986067,0.69,161.31,161.3,53.4444487]
[1754192988058,0.69,161.31,161.3,47.898013]
[1754192988389,0.69,161.31,161.3,10.3844487]
[1754192988582,0.69,161.31,161.3,53.4444487]
[1754192988988,0.69,161.31,161.3,10.3844487]
[1754192989190,0.69,161.31,161.3,53.4444487]
[1754192990387,0.69,161.31,161.3,10.3844487]
[1754192990579,0.69,161.31,161.3,53.4444487]
[1754192997291,0.03,161.31,161.3,53.4444487]
[1754193002527,0.03,161.31,161.3,54.1544487]
[1754193003229,0.03,161.31,161.3,102.3401915]
[1754193006104,0.03,161.31,161.3,80.1544487]
[1754193006707,0.03,161.31,161.3,102.3401915]
[1754193007320,0.03,161.31,161.3,80.1544487]
[1754193008911,4.77801293,161.33,161.3,80.1544487]
[1754193008916,4.77801293,161.33,161.32,5.5464357]
[1754193009099,4.77801293,161.33,161.32,74.6064357]
[1754193009396,4.77801293,161.33,161.32,66.08111967]
[1754193010306,4.77801293,161.33,161.32,70.85913267]
[1754193012028,4.77801293,161.33,161.32,54.0744487]
[1754193017623,5.43801293,161.33,161.32,53.3844487]
[1754193020549,4.77801293,161.33,161.32,53.3844487]
[1754193021666,4.77801293,161.33,161.32,54.0744487]
[1754193026028,4.77801293,161.33,161.32,53.3844487]
[1754193026232,5.43801293,161.33,161.32,53.3844487]
[1754193027177,5.37801293,161.33,161.32,53.3844487]
[1754193029680,4.71801293,161.33,161.32,53.3844487]
[1754193029988,5.37801293,161.33,161.32,53.3844487]
[1754193030360,5.37801293,161.33,161.32,47.838013]
[1754193030690,5.37801293,161.33,161.32,48.6064357]
[1754193032676,4.71801293,161.33,161.32,48.6064357]
[1754193034577,5.41801293,161.33,161.32,48.6064357]
[1754193035888,5.41801293,161.33,161.32,5.5464357]
[1754193036194,5.41801293,161.33,161.32,48.6064357]
[1754193037408,4.71801293,161.33,161.32,48.6064357]
[1754193050986,5.41801293,161.33,161.32,43.06]
[1754193051308,5.41801293,161.33,161.32,48.6064357]
[1754193052029,4.71801293,161.33,161.32,48.6064357]
[1754193053899,5.41801293,161.33,161.32,48.6064357]
[1754193057638,5.41801293,161.33,161.32,43.04]
[1754193059315,9.60641006,161.33,161.32,43.04]
[1754193060134,15.15284576,161.33,161.32,43.04]
[1754193061323,5.41801293,161.33,161.32,43.04]
[1754193061830,15.15016323,161.33,161.32,43.04]
[1754193062025,5.41801293,161.33,161.32,43.04]
[1754193063543,9.60205713,161.33,161.32,43.04]
[1754193063744,15.14849283,161.33,161.32,43.04]
[1754193065119,15.14849283,161.33,161.31,0.06]
[1754193065320,10.26444863,161.33,161.32,43.06]
[1754193065520,14.44650289,161.33,161.32,43.06]
[1754193066020,15.13650289,161.33,161.32,43.06]
[1754193066216,16.78468397,161.32,161.31,0.06]
[1754193066445,27.20317393,161.32,161.31,0.06]
[1754193071451,33.40203333,161.32,161.31,0.06]
[1754193072024,46.0518775,161.32,161.3,0.06]
[1754193072231,33.40241762,161.31,161.3,0.06]
[1754193072429,55.58816042,161.31,161.29,0.06]
[1754193072626,49.38891673,161.3,161.28,0.06]
[1754193072820,35.72848996,161.29,161.28,0.06]
[1754193073124,36.41848996,161.29,161.28,0.06]
[1754193073328,35.72848996,161.29,161.28,0.06]
[1754193073538,36.41848996,161.29,161.28,0.06]
[1754193077962,32.2364357,161.29,161.28,0.06]
[1754193078276,35.47409229,161.29,161.28,0.06]
[1754193097282,39.6348979,161.29,161.28,0.06]
[1754193098313,33.3984622,161.29,161.28,0.06]
[1754193098470,34.78409229,161.29,161.28,0.74]
[1754193098673,34.78409229,161.29,161.28,0.06]
[1754193100297,35.49409229,161.29,161.28,0.06]
[1754193101183,39.65983133,161.29,161.28,0.06]
[1754193103281,38.94983133,161.29,161.28,0.06]
[1754193103801,39.65983133,161.29,161.28,0.06]
[1754193106382,38.94983133,161.29,161.28,0.06]
[1754193108504,39.65983133,161.29,161.28,0.06]
[1754193111014,38.94983133,161.29,161.28,0.06]
[1754193113325,39.65983133,161.29,161.28,0.06]
[1754193115210,44.86665416,161.29,161.28,0.06]
[1754193119526,39.65983133,161.29,161.28,0.06]
[1754193119700,44.86665416,161.29,161.28,0.06]
[1754193120198,44.86665416,161.29,161.26,0.06]
[1754193120199,63.85857083,161.29,161.26,0.06]
[1754193120402,48.33111967,161.27,161.26,0.06]
[1754193120722,52.49685871,161.27,161.26,0.06]
[1754193120930,53.20685871,161.27,161.26,0.06]
[1754193121115,56.44469604,161.27,161.26,0.06]
[1754193125243,50.89826034,161.27,161.26,0.06]
[1754193125407,56.44469604,161.27,161.26,0.06]
[1754193129241,55.73469604,161.27,161.26,0.06]
[1754193129414,55.73469604,161.27,161.26,0.77]
[1754193130133,55.73469604,161.27,161.26,0.06]
[1754193132333,56.45469604,161.27,161.26,0.06]
[1754193135244,55.73469604,161.27,161.26,0.06]
[1754193136244,4.16573904,161.27,161.26,0.77]
[1754193136448,4.16573904,161.28,161.26,3.256866]
[1754193136653,4.16573904,161.28,161.27,0.71]
[1754193137230,4.19573904,161.29,161.27,0.71]
[1754193142174,0.03,161.29,161.27,0.71]
[1754193145652,0.03,161.29,161.26,2.546866]
[1754193145839,0.03,161.29,161.28,0.71]
[1754193146548,0.03,161.29,161.27,0.71]
[1754193147663,0.03,161.29,161.28,0.71]
[1754193149152,0.03,161.29,161.27,0.71]
[1754193150846,0.03,161.29,161.26,2.546866]
[1754193151037,0.03,161.29,161.28,0.71]
[1754193151563,0.03,161.29,161.28,6.2564357]
[1754193152266,0.03,161.29,161.28,10.4398357]
[1754193174907,0.03,161.29,161.28,10.4998357]
[1754193178603,0.03,161.31,161.3,26.0]
[1754193178790,0.03,161.31,161.3,96.7921785]
[1754193179182,0.03,161.31,161.3,102.1901915]
[1754193179896,0.03,161.31,161.3,80.0044487]
[1754193181598,0.03,161.31,161.3,79.3244487]
[1754193182089,0.03,161.31,161.3,80.0044487]
[1754193183294,0.03,161.31,161.3,102.1901915]
[1754193190707,0.03,161.31,161.3,80.0044487]
[1754193193784,0.03,161.31,161.3,79.3244487]
[1754193200226,0.73,161.31,161.3,53.3244487]
[1754193200409,0.73,161.31,161.3,48.6064357]
[1754193220241,0.73,161.31,161.3,43.06]
[1754193220543,0.73,161.31,161.3,48.6064357]
[1754193221326,0.03,161.31,161.3,49.2864357]
[1754193222131,0.03,161.31,161.3,48.6064357]
[1754193224777,0.03,161.31,161.3,49.2864357]
[1754193226849,0.03,161.31,161.3,48.6064357]
[1754193227352,0.03,161.31,161.3,43.06]
[1754193227530,0.03,161.31,161.28,5.6064357]
[1754193227531,0.7,161.31,161.28,5.6064357]
[1754193227726,0.7,161.31,161.29,48.6064357]
[1754193230930,0.7,161.31,161.3,5.5464357]
[1754193232435,0.7,161.31,161.29,43.06]
[1754193232636,0.7,161.31,161.3,5.5464357]
[1754193236474,0.03,161.31,161.3,5.5464357]
[1754193238180,0.03,161.31,161.29,48.6064357]
[1754193238461,0.03,161.31,161.3,5.5464357]
[1754193239542,0.03,161.31,161.3,6.2264357]
[1754193240375,0.03,161.31,161.3,5.5464357]
[1754193241461,0.03,161.31,161.3,6.2264357]
[1754193245994,0.03,161.31,161.3,11.6144487]
[1754193249267,0.03,161.31,161.3,5.5464357]
[1754193249461,0.03,161.31,161.29,43.78]
[1754193249462,0.7,161.31,161.29,43.06]
[1754193249766,0.7,161.31,161.29,48.6064357]
[1754193250303,0.7,161.31,161.3,5.5464357]
[1754193252098,0.7,161.31,161.29,48.6064357]
[1754193252403,0.67,161.3,161.29,48.6064357]
[1754193253780,0.67,161.3,161.29,43.06]
[1754193253989,0.67,161.3,161.29,48.6064357]
[1754193255974,0.03,161.31,161.29,48.6064357]
[1754193256186,0.7,161.31,161.3,5.5464357]
[1754193257898,0.03,161.31,161.3,5.5464357]
[1754193259597,0.7,161.31,161.3,43.04]
[1754193262479,6.2464357,161.31,161.3,43.04]
[1754193267392,0.7,161.31,161.3,43.04]
[1754193267611,6.2464357,161.31,161.3,43.04]
[1754193269197,6.2464357,161.31,161.28,43.1]
[1754193269511,0.67,161.3,161.28,43.1]
[1754193273132,0.7,161.31,161.28,43.82]
[1754193273418,0.03,161.31,161.3,5.5464357]
[1754193273795,0.03,161.31,161.3,6.2664357]
[1754193275711,0.03,161.31,161.3,5.5464357]
[1754193277090,0.7,161.31,161.29,6.2464357]
[1754193277403,0.7,161.31,161.28,49.3464357]
[1754193278012,0.7,161.31,161.28,48.6464357]
[1754193278211,0.7,161.31,161.29,0.7]
[1754193278395,0.03,161.31,161.29,0.7]
[1754193279410,0.7,161.31,161.28,49.3464357]
[1754193279915,0.7,161.31,161.28,48.6464357]
[1754193280111,0.7,161.31,161.28,49.3464357]
[1754193280618,0.7,161.31,161.29,0.7]
[1754193280619,0.03,161.31,161.29,0.7]
[1754193281216,0.03,161.31,161.29,6.2464357]
[1754193285424,0.03,161.31,161.3,6.2464357]
[1754193286630,0.7,161.31,161.28,49.3464357]
[1754193287016,0.7,161.31,161.28,54.0644487]
[1754193287519,0.7,161.31,161.29,0.7]
[1754193288238,0.03,161.31,161.29,0.7]
[1754193290102,0.03,161.31,161.29,6.2464357]
[1754193290433,0.03,161.31,161.29,5.5464357]
[1754193290618,0.03,161.31,161.3,0.7]
[1754193290931,0.03,161.31,161.3,6.2464357]
[1754193291526,0.03,161.31,161.3,10.9644477]
[1754193292029,0.03,161.31,161.3,0.7]
[1754193292212,0.03,161.31,161.3,6.2464357]
[1754193293307,0.03,161.31,161.29,10.2644487]
[1754193293632,0.03,161.31,161.29,10.9644487]
[1754193294636,0.7,161.31,161.29,10.2644487]
[1754193294932,0.7,161.31,161.28,48.6464357]
[1754193295137,0.03,161.31,161.28,53.3644487]
[1754193295347,0.67,161.3,161.28,48.6464357]
[1754193295836,0.67,161.29,161.28,43.1]
[1754193298241,6.2164357,161.29,161.28,43.1]
[1754193298417,6.2164357,161.29,161.28,0.06]
[1754193298744,27.18571711,161.29,161.28,0.06]
[1754193301138,21.63928141,161.29,161.28,0.06]
[1754193302564,27.18571711,161.29,161.28,0.06]
[1754193304130,30.42273011,161.29,161.28,0.06]
[1754193305029,29.75273011,161.29,161.28,0.06]
[1754193305228,30.47273011,161.29,161.28,0.06]
[1754193312134,37.88671502,161.29,161.28,0.06]
[1754193312766,41.01586724,161.29,161.28,0.06]
[1754193314356,41.00690303,161.29,161.28,0.06]
[1754193318965,84.06690303,161.29,161.28,0.06]
[1754193319349,7.41264623,161.29,161.28,0.72]
[1754193319674,11.19353692,161.31,161.28,0.72]
[1754193319968,20.95314954,161.3,161.28,0.72]
[1754193320170,16.78468397,161.3,161.28,0.72]
[1754193320475,16.78468397,161.3,161.29,0.66]
[1754193320650,20.95329562,161.3,161.29,0.66]
[1754193321270,20.95329562,161.3,161.28,0.06]
[1754193321453,25.46027189,161.3,161.28,0.72]
[1754193324654,16.78468397,161.3,161.28,0.72]
[1754193325456,16.81468397,161.3,161.29,0.66]
[1754193325650,20.98429071,161.3,161.29,0.66]
[1754193325958,16.81468397,161.3,161.29,0.66]
[1754193326152,16.81468397,161.3,161.28,0.06]
[1754193326557,16.81468397,161.3,161.28,0.72]
[1754193326852,0.03,161.3,161.28,0.72]
[1754193327248,0.03,161.3,161.28,9.425588]
[1754193328171,0.03,161.3,161.28,8.765588]
[1754193328374,0.03,161.3,161.28,0.72]
[1754193330077,9.39558792,161.29,161.28,0.06]
[1754193330246,13.56679211,161.29,161.28,0.06]
[1754193330658,9.39558792,161.29,161.28,0.06]
[1754193330862,0.03,161.3,161.28,0.06]
[1754193331072,13.59765016,161.3,161.28,0.06]
[1754193331379,9.42558792,161.3,161.28,0.06]
[1754193332249,4.17325424,161.29,161.28,0.06]
[1754193337362,4.17325424,161.29,161.28,9.38558792]
[1754193337676,4.20325424,161.3,161.28,9.38558792]
[1754193337976,0.03,161.3,161.29,9.32558792]
[1754193338387,0.03,161.3,161.28,4.263254]
[1754193338545,4.20325424,161.3,161.28,0.06]
[1754193338742,4.88325424,161.3,161.28,0.06]
[1754193339773,4.20325424,161.3,161.28,0.06]
[1754193339975,30.31352613,161.29,161.28,0.06]
[1754193341074,21.63793821,161.29,161.28,0.06]
[1754193341276,20.95793821,161.29,161.28,0.06]
[1754193341867,21.63793821,161.29,161.28,0.06]
[1754193343180,30.31352613,161.29,161.28,0.06]
[1754193344782,35.53306767,161.29,161.28,0.06]
[1754193345864,78.61306767,161.29,161.28,0.06]
[1754193346187,73.39352613,161.29,161.28,0.06]
[1754193346384,72.71352613,161.29,161.28,0.06]
[1754193346686,29.63352613,161.29,161.28,0.06]
[1754193347282,20.95793821,161.29,161.28,0.71]
[1754193347454,4.17325424,161.29,161.28,0.71]
[1754193347653,4.20325424,161.3,161.28,0.71]
[1754193348287,4.20325424,161.3,161.29,0.65]
[1754193348781,4.20325424,161.3,161.28,0.06]
[1754193349167,4.85325424,161.29,161.28,0.06]
[1754193352270,30.31352613,161.29,161.28,0.06]
[1754193360197,21.63793821,161.29,161.28,0.06]
[1754193360401,30.31352613,161.29,161.28,0.06]
[1754193360603,4.17325424,161.29,161.28,0.71]
[1754193361568,4.17325424,161.29,161.28,0.06]
[1754193361770,13.52884216,161.29,161.28,0.06]
[1754193363195,30.31352613,161.29,161.28,0.06]
[1754193363373,20.95793821,161.29,161.28,0.06]
[1754193363876,20.95793821,161.29,161.28,0.71]
[1754193365004,20.95793821,161.29,161.28,0.06]
[1754193366802,30.29352613,161.29,161.28,0.06]
[1754193368283,33.53069273,161.29,161.28,0.06]
[1754193368794,33.56069273,161.29,161.28,0.06]
[1754193369908,24.88510481,161.29,161.28,0.06]
[1754193370106,24.22510481,161.29,161.28,0.06]
[1754193373603,24.88510481,161.29,161.28,0.06]
[1754193376272,24.22510481,161.29,161.28,0.06]
[1754193382298,7.44042084,161.29,161.28,0.06]
[1754193383106,7.44042084,161.29,161.28,0.76]
[1754193383411,7.44042084,161.29,161.28,0.06]
[1754193386093,16.77600876,161.29,161.28,0.06]
[1754193386310,8.10042084,161.29,161.28,0.06]
[1754193387531,7.44042084,161.29,161.28,0.06]
[1754193387832,8.10042084,161.29,161.28,0.06]
[1754193395253,13.64947061,161.29,161.28,0.06]
[1754193395437,8.10042084,161.29,161.28,0.06]
[1754193396941,7.44042084,161.29,161.28,0.06]